bitfinex-derivatives/quotes_SOLF0:USTF0_20250216
["timestamp","ask_amount","ask_price","bid_price","bid_amount"]
[1739748544119,7.08166356,188.51,188.44,7.08166356]
[1739748544524,0.03621262,188.49,188.46,0.04052488]
[1739748544926,5.34081262,188.49,188.46,0.04052488]
[1739748545128,0.03621262,188.49,188.46,0.04052488]
[1739748545733,5.3048,188.48,188.46,0.04052488]
[1739748547331,0.03621262,188.49,188.46,7.12218844]
[1739748547730,0.03621262,188.49,188.47,5.305]
[1739748547932,0.03621262,188.49,188.46,7.12218844]
[1739748548131,0.03621262,188.49,188.48,7.08166356]
[1739748549233,0.03621262,188.49,188.48,12.38646356]
[1739748552833,1.6852,188.56,188.48,7.08166356]
[1739748553034,1.6852,188.56,188.52,12.38506356]
[1739748553939,8.6465,188.59,188.53,5.3031]
[1739748554132,0.03859897,188.56,188.53,5.3031]
[1739748554542,0.03859897,188.56,188.54,5.3031]
[1739748555044,0.03859897,188.56,188.55,5.3028]
[1739748560242,0.03859897,188.56,188.54,12.38466356]
[1739748561948,0.03859897,188.56,188.55,5.3028]
[1739748564437,9.897e-05,188.56,188.55,5.3028]
[1739748564642,8.76016356,188.67,188.54,7.08166356]
[1739748564947,5.3002,188.65,188.61,7.08166356]
[1739748565341,8.76016356,188.67,188.61,7.08166356]
[1739748565840,5.3002,188.65,188.62,0.03676137]
[1739748566244,5.3006,188.63,188.62,0.03676137]
[1739748567044,7.08166356,188.65,188.57,7.08166356]
[1739748567640,5.3008,188.63,188.58,5.3019]
[1739748568241,0.03485671,188.62,188.59,0.03517001]
[1739748568444,0.03485671,188.62,188.61,7.08166356]
[1739748570037,0.03485671,188.62,188.61,12.38276356]
[1739748573847,0.03485671,188.62,188.61,7.08166356]
[1739748574444,0.03485671,188.62,188.59,7.11683357]
[1739748574645,0.03485671,188.62,188.59,0.03517001]
[1739748575949,0.03485671,188.62,188.59,7.11683357]
[1739748577144,0.03485671,188.62,188.59,12.41843357]
[1739748577349,0.03485671,188.62,188.61,7.08166356]
[1739748577844,0.03485671,188.62,188.61,12.38276356]
[1739748595073,0.03485671,188.62,188.61,7.08166356]
[1739748595970,0.03485671,188.62,188.61,12.38276356]
[1739748596371,0.03485671,188.62,188.61,7.08166356]
[1739748597072,0.03485671,188.62,188.61,12.38276356]
[1739748597772,0.03485671,188.62,188.59,12.41843357]
[1739748598473,0.03485671,188.62,188.6,5.3014]
[1739748600876,0.03485671,188.62,188.59,7.11683357]
[1739748601070,0.03485671,188.62,188.59,0.03517001]
[1739748601572,5.3014,188.6,188.59,0.03517001]
[1739748601777,10.35246356,188.61,188.53,7.08166356]
[1739748602170,7.08166356,188.59,188.51,7.08166356]
[1739748602367,7.08166356,188.57,188.51,7.08166356]
[1739748602569,5.3029,188.55,188.49,12.38596356]
[1739748603077,0.03476589,188.54,188.5,0.03890198]
[1739748603676,7.08166356,188.53,188.47,7.08166356]
[1739748603873,10.35246356,188.53,188.47,7.08166356]
[1739748604773,5.3037,188.52,188.47,7.08166356]
[1739748604974,5.3037,188.52,188.48,0.03741827]
[1739748606081,10.35246356,188.53,188.48,0.03741827]
[1739748607879,3.2708,188.53,188.49,5.3042]
[1739748608277,3.2708,188.53,188.48,0.03741827]
[1739748608477,3.2708,188.53,188.48,5.34191827]
[1739748608679,3.2708,188.53,188.49,7.08166356]
[1739748608881,0.03476589,188.54,188.49,7.08166356]
[1739748609074,0.03476589,188.54,188.49,12.38616356]
[1739748610175,0.03476589,188.54,188.48,0.03741827]
[1739748610382,0.03476589,188.54,188.53,7.08166356]
[1739748611176,0.03476589,188.54,188.51,7.08166356]
[1739748611377,0.03476589,188.54,188.49,7.08166356]
[1739748611585,0.03476589,188.54,188.49,12.38586356]
[1739748611772,0.03476589,188.54,188.53,7.08166356]
[1739748612175,0.03476589,188.54,188.53,12.38506356]
[1739748617381,0.03476589,188.54,188.51,12.38536356]
[1739748617789,0.03476589,188.54,188.51,7.08166356]
[1739748617989,0.03476589,188.54,188.48,0.03741827]
[1739748620181,0.03476589,188.54,188.51,7.08166356]
[1739748620787,0.03476589,188.54,188.52,5.3036]
[1739748620990,0.03476589,188.54,188.53,7.08166356]
[1739748621390,0.03476589,188.54,188.53,12.38506356]
[1739748622493,60.0931726,188.64,188.53,7.08166356]
[1739748622683,60.0931726,188.64,188.59,7.08166356]
[1739748623086,60.0931726,188.64,188.59,12.38336356]
[1739748623487,1.6232,188.64,188.59,7.08166356]
[1739748623694,0.03825486,188.63,188.6,0.03403098]
[1739748624191,0.03825486,188.63,188.61,7.08166356]
[1739748624695,0.03825486,188.63,188.6,0.03403098]
[1739748624885,0.03825486,188.63,188.61,5.3011]
[1739748625289,0.03825486,188.63,188.6,0.03403098]
[1739748629094,0.03825486,188.63,188.61,5.3011]
[1739748629396,0.03825486,188.63,188.61,11.03425233]
[1739748629593,0.03825486,188.63,188.61,16.33535233]
[1739748629792,0.03825486,188.63,188.61,5.3011]
[1739748630992,0.03825486,188.63,188.6,0.03403098]
[1739748632098,0.03825486,188.63,188.6,5.33523098]
[1739748632298,0.03825486,188.63,188.6,0.03403098]
[1739748633189,0.03825486,188.63,188.6,5.33543098]
[1739748634695,0.03825486,188.63,188.6,0.03403098]
[1739748634997,0.03825486,188.63,188.61,5.3011]
[1739748636099,0.03825486,188.63,188.6,5.33543098]
[1739748636299,0.03825486,188.63,188.6,0.03403098]
[1739748637400,0.03825486,188.63,188.61,5.3008]
[1739748637798,0.03825486,188.63,188.6,0.03403098]
[1739748637995,0.03825486,188.63,188.62,5.3008]
[1739748646705,0.03825486,188.63,188.62,12.36121278]
[1739748662019,0.03825486,188.63,188.62,7.06041278]
[1739748662622,0.03825486,188.63,188.62,12.36121278]
[1739748666123,0.03825486,188.63,188.62,7.06041278]
[1739748666325,0.03825486,188.63,188.6,0.03403098]
[1739748666820,7.06041278,188.62,188.54,7.06041278]
[1739748667026,7.06041278,188.59,188.52,7.06041278]
[1739748667227,7.06041278,188.57,188.5,7.06041278]
[1739748667428,7.06041278,188.55,188.48,7.06041278]
[1739748667924,0.03827454,188.53,188.5,0.0405091]
[1739748668118,0.03827454,188.53,188.5,7.10092188]
[1739748669422,0.03827454,188.53,188.52,7.06041278]
[1739748669725,0.03827454,188.53,188.52,12.36401278]
[1739748670423,7.454e-05,188.53,188.52,12.36401278]
[1739748670631,1.6093,188.61,188.55,5.3026]
[1739748670927,1.6093,188.61,188.56,7.06041278]
[1739748671122,58.4699726,188.62,188.58,7.06041278]
[1739748671630,58.50561604,188.62,188.58,7.09760663]
[1739748672028,0.03564344,188.62,188.58,7.09760663]
[1739748672833,0.03564344,188.62,188.6,12.36161278]
[1739748673330,0.03564344,188.62,188.61,5.3011]
[1739748691344,5.2985,188.71,188.66,5.2995]
[1739748691540,5.2985,188.71,188.52,13.8161]
[1739748691541,5.2985,188.71,188.63,11.03227513]
[1739748691938,5.2985,188.71,188.65,5.2999]
[1739748692243,5.2981,188.72,188.63,11.03227513]
[1739748692639,0.03941805,188.69,188.66,5.33352127]
[1739748693242,0.03941805,188.69,188.66,0.03402127]
[1739748693443,0.03941805,188.69,188.67,5.2993]
[1739748693843,0.03941805,188.69,188.68,5.2991]
[1739748695246,1.805e-05,188.69,188.68,5.2991]
[1739748695547,5.2966,188.77,188.7,5.2984]
[1739748695744,63.0855726,188.78,188.66,11.03227513]
[1739748696548,63.0855726,188.78,188.61,4.7493]
[1739748696549,5.33648618,188.74,188.7,0.03500236]
[1739748697547,5.33648618,188.74,188.7,7.09154209]
[1739748697548,0.03878618,188.74,188.7,7.09154209]
[1739748697747,73.34474939,188.83,188.73,7.05653973]
[1739748697947,73.34474939,188.83,188.79,7.05653973]
[1739748698548,73.34474939,188.83,188.76,11.0136538]
[1739748698948,0.02702179,188.81,188.78,0.04023046]
[1739748703948,5.32262179,188.81,188.78,0.04023046]
[1739748705249,0.02702179,188.81,188.78,0.04023046]
[1739748705651,0.02702179,188.81,188.78,5.33653046]
[1739748707460,0.02702179,188.81,188.78,0.04023046]
[1739748708158,0.02702179,188.81,188.8,5.2958]
[1739748709152,0.02702179,188.81,188.78,0.04023046]
[1739748709650,5.32252179,188.81,188.78,0.04023046]
[1739748710257,0.02702179,188.81,188.78,0.04023046]
[1739748712154,0.02702179,188.81,188.8,5.2958]
[1739748714859,0.02702179,188.81,188.78,0.04023046]
[1739748715254,0.02702179,188.81,188.8,5.2958]
[1739748715458,0.02702179,188.81,188.78,0.04023046]
[1739748715958,0.02702179,188.81,188.8,5.2958]
[1739748716358,0.02702179,188.81,188.78,0.04023046]
[1739748716761,0.02702179,188.81,188.78,5.33643046]
[1739748716961,0.02702179,188.81,188.71,11.0136538]
[1739748717162,0.02702179,188.81,188.68,11.0136538]
[1739748717361,5.2966,188.78,188.71,5.2981]
[1739748717563,3.1247,188.81,188.68,11.0136538]
[1739748718261,0.04085359,188.76,188.73,0.03831165]
[1739748720164,5.359e-05,188.76,188.74,11.0136538]
[1739748721162,5.359e-05,188.76,188.75,5.2972]
[1739748721365,5.359e-05,188.76,188.73,0.03831165]
[1739748722962,5.359e-05,188.76,188.74,5.2972]
[1739748723161,5.359e-05,188.76,188.73,0.03831165]
[1739748723663,5.359e-05,188.76,188.74,5.2972]
[1739748723964,5.359e-05,188.76,188.73,0.03831165]
[1739748724866,5.359e-05,188.76,188.75,5.2972]
[1739748725064,5.359e-05,188.76,188.73,0.03831165]
[1739748726769,5.359e-05,188.76,188.65,64.25083457]
[1739748727065,5.2983,188.71,188.63,5.3003]
[1739748727261,5.2983,188.71,188.61,11.0136538]
[1739748727655,5.2983,188.71,188.64,5.3003]
[1739748727859,0.0383663,188.68,188.64,5.34018429]
[1739748728060,0.0383663,188.68,188.64,0.03988429]
[1739748728367,0.0383663,188.68,188.64,11.05353809]
[1739748728764,0.0383663,188.68,188.66,5.2995]
[1739748729266,0.0383663,188.68,188.64,11.05353809]
[1739748729464,0.0383663,188.68,188.65,5.3]
[1739748729665,0.0383663,188.68,188.64,11.05353809]
[1739748730066,0.0383663,188.68,188.65,5.2999]
[1739748733070,0.0383663,188.68,188.66,5.2997]
[1739748733471,0.0383663,188.68,188.64,11.05353809]
[1739748733872,0.0383663,188.68,188.67,5.2994]
[1739748734172,0.0383663,188.68,188.64,11.05353809]
[1739748737482,0.0383663,188.68,188.64,16.35373809]
[1739748737780,0.0383663,188.68,188.64,0.03988429]
[1739748737977,5.3375663,188.68,188.64,0.03988429]
[1739748738178,0.0383663,188.68,188.64,0.03988429]
[1739748738377,3.2195,188.67,188.58,11.0136538]
[1739748738577,3.2195,188.67,188.6,5.3013]
[1739748738775,3.2195,188.67,188.58,11.0136538]
[1739748739285,8.519,188.67,188.61,5.301]
[1739748739481,8.519,188.67,188.61,5.33590523]
[1739748739676,3.2195,188.67,188.61,0.03490523]
[1739748741083,3.2195,188.67,188.61,5.33580523]
[1739748741680,3.2195,188.67,188.62,5.3007]
[1739748742484,3.2195,188.67,188.61,0.03490523]
[1739748742987,3.2195,188.67,188.62,5.3008]
[1739748743485,3.2195,188.67,188.61,0.03490523]
[1739748743686,3.2195,188.67,188.63,5.3005]
[1739748744284,3.2195,188.67,188.61,0.03490523]
[1739748744484,3.2195,188.67,188.64,5.3003]
[1739748746078,0.0383663,188.68,188.61,0.03490523]
[1739748746284,0.0383663,188.68,188.61,11.04855903]
[1739748747081,0.0383663,188.68,188.66,5.2995]
[1739748748291,0.0383663,188.68,188.67,5.2994]
[1739748748585,0.0383663,188.68,188.65,0.03516942]
[1739748751194,5.3375663,188.68,188.65,0.03516942]
[1739748751585,0.0383663,188.68,188.65,0.03516942]
[1739748751893,5.2997,188.66,188.65,0.03516942]
[1739748753494,0.0383663,188.68,188.65,0.03516942]
[1739748754796,5.3375663,188.68,188.65,0.03516942]
[1739748755294,5.2994,188.67,188.65,0.03516942]
[1739748756592,58.4699726,188.75,188.65,0.03516942]
[1739748756796,58.4699726,188.75,188.72,11.0136538]
[1739748756797,50.3616726,188.75,188.72,11.0136538]
[1739748756993,88.71838392,188.76,188.72,11.0136538]
[1739748757194,88.71838392,188.76,188.75,11.0136538]
[1739748757395,88.71838392,188.76,188.75,16.3108538]
[1739748758897,0.03598361,188.77,188.76,5.2969]
[1739748764899,0.03598361,188.77,188.74,5.33206197]
[1739748765297,0.03598361,188.77,188.74,0.03486197]
[1739748766605,0.03598361,188.77,188.74,5.33226197]
[1739748767905,0.03598361,188.77,188.75,5.2972]
[1739748770210,0.03598361,188.77,188.76,5.2969]
[1739748778915,0.03598361,188.77,188.74,0.03486197]
[1739748779521,0.03598361,188.77,188.75,5.297]
[1739748780622,0.03598361,188.77,188.76,5.2969]
[1739748781123,0.03598361,188.77,188.74,0.03486197]
[1739748781324,0.03598361,188.77,188.75,5.2971]
[1739748782626,0.03598361,188.77,188.76,5.2969]
[1739748788631,0.03598361,188.77,188.76,12.34804065]
[1739748790425,0.03598361,188.77,188.74,7.08600262]
[1739748791029,0.03598361,188.77,188.76,12.34804065]
[1739748795935,0.03598361,188.77,188.76,7.05114065]
[1739748796837,0.03598361,188.77,188.75,5.2971]
[1739748797135,0.03598361,188.77,188.74,0.03486197]
[1739748798036,0.03598361,188.77,188.74,7.08600262]
[1739748798535,0.03598361,188.77,188.75,5.297]
[1739748798841,0.03598361,188.77,188.76,7.05114065]
[1739748799543,0.03598361,188.77,188.76,12.34804065]
[1739748800744,0.03598361,188.77,188.75,5.2971]
[1739748801040,0.03598361,188.77,188.74,7.08600262]
[1739748801437,0.03598361,188.77,188.76,7.05114065]
[1739748801638,0.03598361,188.77,188.76,12.34804065]
[1739748805047,8.361e-05,188.77,188.76,12.34804065]
[1739748816152,8.361e-05,188.77,188.75,5.2971]
[1739748816549,8.361e-05,188.77,188.74,7.08600262]
[1739748816753,8.361e-05,188.77,188.76,12.34804065]
[1739748823559,194.0,188.83,188.76,7.05114065]
[1739748823760,194.0,188.83,188.8,7.05114065]
[1739748824559,194.0,188.83,188.8,12.34694065]
[1739748824861,194.03029828,188.83,188.8,12.38177248]
[1739748825355,194.03029828,188.83,188.81,5.2954]
[1739748826457,0.03029828,188.83,188.82,12.34634065]
[1739748826658,0.03029828,188.83,188.82,7.05114065]
[1739748828255,0.03029828,188.83,188.82,12.34634065]
[1739748830965,0.03029828,188.83,188.82,7.05114065]
[1739748832461,0.03029828,188.83,188.82,12.34634065]
[1739748832857,0.03029828,188.83,188.82,7.05114065]
[1739748835260,0.03029828,188.83,188.82,12.34634065]
[1739748835562,0.03029828,188.83,188.82,7.05114065]
[1739748836253,0.03029828,188.83,188.82,12.34634065]
[1739748836656,0.03029828,188.83,188.82,7.05114065]
[1739748837961,0.03029828,188.83,188.8,12.38147248]
[1739748838461,0.03029828,188.83,188.8,7.08597248]
[1739748839861,0.03029828,188.83,188.8,12.38157248]
[1739748840160,0.03029828,188.83,188.8,7.08597248]
[1739748840360,0.03029828,188.83,188.8,12.38167248]
[1739748841359,0.03029828,188.83,188.8,7.08597248]
[1739748841559,0.03029828,188.83,188.8,0.03483183]
[1739748842660,5.2953,188.82,188.8,0.03483183]
[1739748842857,0.03029828,188.83,188.8,0.03483183]
[1739748844065,0.03029828,188.83,188.8,7.08597248]
[1739748844562,0.03029828,188.83,188.8,12.38177248]
[1739748844867,0.03029828,188.83,188.8,7.08597248]
[1739748845067,0.03029828,188.83,188.81,5.2953]
[1739748845269,0.03029828,188.83,188.8,7.08597248]
[1739748845767,0.03029828,188.83,188.82,5.2952]
[1739748847371,0.03029828,188.83,188.81,5.2954]
[1739748848869,0.03029828,188.83,188.82,12.34634065]
[1739748849166,0.03029828,188.83,188.82,7.05114065]
[1739748849467,194.0,188.89,188.82,7.05114065]
[1739748849671,194.0,188.89,188.8,0.03483183]
[1739748849672,68.80452403,188.92,188.85,7.05114065]
[1739748850069,68.80452403,188.92,188.83,7.05114065]
[1739748850268,5.2935,188.89,188.83,7.05114065]
[1739748850665,7.05114065,188.9,188.84,0.03503918]
[1739748851573,7.05114065,188.88,188.79,7.05114065]
[1739748852075,7.05114065,188.86,188.79,7.05114065]
[1739748852267,1.6786,188.85,188.79,7.05114065]
[1739748852870,0.03432925,188.84,188.8,0.03777694]
[1739748853069,5.32902925,188.84,188.8,0.03777694]
[1739748853269,0.03432925,188.84,188.8,0.03777694]
[1739748853469,0.03432925,188.84,188.81,7.05114065]
[1739748853673,0.03432925,188.84,188.83,7.05114065]
[1739748855873,0.03432925,188.84,188.83,12.34604065]
[1739748856274,45.55368338,188.9,188.89,7.05114065]
[1739748856476,58.99554382,188.94,188.89,7.05114065]
[1739748856774,58.99554382,188.94,188.93,7.05114065]
[1739748857771,58.99554382,188.94,188.93,12.34324065]
[1739748857977,58.99554382,188.94,188.93,7.05114065]
[1739748859079,58.99554382,188.94,188.93,12.34324065]
[1739748860770,1.5951,188.99,188.93,12.34324065]
[1739748860975,1.5951,188.99,188.95,7.05114065]
[1739748862681,1.5951,188.99,188.92,0.03828336]
[1739748862682,1.5951,188.99,188.93,7.05114065]
[1739748862882,6.8856,188.99,188.93,7.05114065]
[1739748863979,6.8856,188.99,188.93,12.34324065]
[1739748864179,6.8856,188.99,188.93,7.05114065]
[1739748864484,5.2907,188.98,188.93,7.05114065]
[1739748864680,1.5951,188.99,188.93,7.05114065]
[1739748864886,7.05114065,189.03,188.95,7.05114065]
[1739748865086,5.2905,188.99,188.95,7.05114065]
[1739748865487,5.2907,188.98,188.97,0.03715273]
[1739748868289,4.8469,189.02,188.97,0.03715273]
[1739748868485,7.05114065,189.01,188.97,0.03715273]
[1739748868886,5.2907,188.98,188.97,0.03715273]
[1739748873094,4.8469,189.02,188.91,7.05114065]
[1739748873095,5.2918,188.95,188.91,7.05114065]
[1739748873393,7.05114065,188.97,188.89,7.05114065]
[1739748873589,5.2919,188.94,188.89,7.05114065]
[1739748874296,0.03517921,188.93,188.9,0.03939966]
[1739748874481,0.03517921,188.93,188.91,7.05114065]
[1739748874988,4.8469,189.02,188.91,7.05114065]
[1739748875188,4.8469,189.02,188.96,7.05114065]
[1739748875391,5.2902,189.0,188.94,7.05114065]
[1739748875785,4.8469,189.02,188.96,7.05114065]
[1739748875986,10.1368,189.02,188.96,7.05114065]
[1739748876185,4.8469,189.02,188.97,0.03569125]
[1739748876384,4.8469,189.02,188.94,7.05114065]
[1739748876589,4.8469,189.02,188.96,0.03548673]
[1739748876785,10.1366,189.02,188.96,0.03548673]
[1739748876991,4.8469,189.02,188.96,7.08662738]
[1739748877188,4.8469,189.02,188.96,0.03548673]
[1739748877896,7.05114065,189.01,188.96,0.03548673]
[1739748878097,7.05114065,188.99,188.96,0.03548673]
[1739748878297,5.291,188.98,188.96,0.03548673]
[1739748879896,5.291,188.97,188.96,0.03548673]
[1739748880096,7.05114065,188.97,188.9,7.05114065]
[1739748880496,5.2913,188.96,188.9,12.34414065]
[1739748880705,5.2913,188.96,188.9,7.05114065]
[1739748881202,7.05114065,188.97,188.88,7.05114065]
[1739748881401,0.03746025,188.95,188.91,0.03921848]
[1739748883700,0.03746025,188.95,188.92,12.34354065]
[1739748884403,0.03746025,188.95,188.91,0.03921848]
[1739748886207,0.03746025,188.95,188.92,5.2923]
[1739748887312,0.03746025,188.95,188.92,12.34344065]
[1739748887707,0.03746025,188.95,188.92,7.05114065]
[1739748887908,0.03746025,188.95,188.94,12.34304065]
[1739748894316,0.03746025,188.95,188.94,7.05114065]
[1739748895115,0.03746025,188.95,188.94,12.34304065]
[1739748898913,6.025e-05,188.95,188.94,12.34304065]
[1739748901018,7.05114065,189.05,188.94,7.05114065]
[1739748901221,60.18144708,189.09,189.03,7.05114065]
[1739748901418,67.23258773,189.09,189.03,7.05114065]
[1739748901717,8.72174065,189.09,189.01,7.05114065]
[1739748902114,7.05114065,189.07,189.01,7.05114065]
[1739748902418,7.05114065,189.05,189.03,0.0398234]
[1739748902619,7.05114065,189.05,188.97,7.05114065]
[1739748902815,7.05114065,189.01,188.93,7.05114065]
[1739748903016,7.05114065,188.99,188.93,7.05114065]
[1739748903215,7.05114065,188.99,188.91,7.05114065]
[1739748903416,5.2908,188.98,188.91,7.05114065]
[1739748903823,0.03939175,188.96,188.93,0.03676163]
[1739748904215,5.33069175,188.96,188.93,0.03676163]
[1739748904413,7.05114065,188.95,188.93,0.03676163]
[1739748904620,7.05114065,188.95,188.89,7.05114065]
[1739748905008,5.2922,188.93,188.87,7.05114065]
[1739748905216,7.05114065,188.93,188.85,65.07630361]
[1739748905519,5.2924,188.92,188.91,7.30150203]
[1739748905719,0.0386513,188.91,188.9,1.92406472]
[1739748906718,5.3313513,188.91,188.9,1.92406472]
[1739748907324,0.0386513,188.91,188.9,1.92406472]
[1739748908216,0.0386513,188.91,188.9,7.21706472]
[1739748908623,0.0386513,188.91,188.9,5.293]
[1739748908922,65.56198773,189.0,188.89,7.05114065]
[1739748909117,65.56198773,189.0,188.93,7.05114065]
[1739748909714,65.56198773,189.0,188.93,12.34304065]
[1739748909919,0.03793373,188.98,188.95,0.03745736]
[1739748912719,0.03793373,188.98,188.97,5.291]
[1739748912921,204.99802207,189.09,188.96,12.57152207]
[1739748913123,194.0,189.08,188.96,12.57152207]
[1739748913319,5.2892,189.04,188.97,5.2908]
[1739748913623,5.2892,189.04,188.96,12.57152207]
[1739748914125,5.2892,189.04,188.98,5.32660446]
[1739748914625,194.0,189.08,188.98,0.03590446]
[1739748915218,5.2893,189.04,188.98,0.03590446]
[1739748915822,5.2886,189.06,189.0,5.2901]
[1739748916024,194.0,189.08,188.97,1.5809]
[1739748916225,194.0,189.08,189.01,0.03357188]
[1739748916423,194.0,189.08,189.01,5.32327188]
[1739748916424,5.2883,189.07,189.01,5.32327188]
[1739748917325,5.2891,189.04,189.01,0.03357188]
[1739748920226,194.0,189.08,189.01,0.03357188]
[1739748920434,5.2887,189.06,189.01,0.03357188]
[1739748920933,194.0,189.08,189.01,0.03357188]
[1739748921231,199.2882,189.08,189.01,0.03357188]
[1739748921725,194.0,189.08,189.01,0.03357188]
[1739748922433,5.289,189.05,189.01,0.03357188]
[1739748925042,5.2885,189.07,189.01,0.03357188]
[1739748925237,194.0,189.08,189.01,0.03357188]
[1739748926335,199.288,189.08,189.02,5.2896]
[1739748926929,199.288,189.08,189.01,0.03357188]
[1739748926930,194.0,189.08,189.01,0.03357188]
[1739748929234,194.0,189.08,189.03,5.2893]
[1739748929937,199.288,189.08,189.03,5.2893]
[1739748931135,194.0,189.08,189.01,0.03357188]
[1739748932144,10.99802207,189.06,189.01,0.03357188]
[1739748933144,10.99802207,189.03,189.01,0.03357188]
[1739748933338,10.99802207,189.03,188.91,1.643]
[1739748933935,10.99802207,189.0,188.91,1.643]
[1739748934438,5.32457188,188.97,188.9,6.9741]
[1739748934644,0.03357188,188.97,188.94,0.03427402]
[1739748935945,0.03357188,188.97,188.94,5.32607402]
[1739748937548,0.03357188,188.97,188.94,0.03427402]
[1739748941854,0.03357188,188.97,188.94,5.32597402]
[1739748943058,0.03357188,188.97,188.94,0.03427402]
[1739748943751,0.03357188,188.97,188.94,5.32587402]
[1739748944751,11.03159395,188.97,188.94,0.03427402]
[1739748945053,194.0,188.96,188.84,3.2909]
[1739748945248,10.99802207,188.93,188.84,3.2909]
[1739748945445,10.99802207,188.93,188.84,8.5853]
[1739748945754,5.2932,188.9,188.84,8.5853]
[1739748946160,0.03730668,188.89,188.85,0.03991165]
[1739748947058,0.03730668,188.89,188.85,5.33421165]
[1739748947255,0.03730668,188.89,188.85,0.03991165]
[1739748947856,0.03730668,188.89,188.86,5.294]
[1739748949355,0.03730668,188.89,188.85,0.03991165]
[1739748951661,5.294,188.87,188.85,0.03991165]
[1739748951855,0.03730668,188.89,188.85,0.03991165]
[1739748952259,5.2936,188.88,188.85,0.03991165]
[1739748952458,0.03730668,188.89,188.85,0.03991165]
[1739748952861,5.2938,188.87,188.85,0.03991165]
[1739748953658,0.03730668,188.89,188.85,0.03991165]
[1739748954261,5.33060668,188.89,188.85,0.03991165]
[1739748955661,5.2936,188.88,188.85,0.03991165]
[1739748956657,5.2941,188.86,188.85,0.03991165]
[1739748958761,5.2939,188.87,188.85,0.03991165]
[1739748960164,0.03730668,188.89,188.85,0.03991165]
[1739748960358,5.2941,188.86,188.85,0.03991165]
[1739748960664,0.03730668,188.89,188.85,0.03991165]
[1739748961258,10.99802207,188.86,188.85,0.03991165]
[1739748961458,16.29212207,188.86,188.85,0.03991165]
[1739748961661,5.2941,188.86,188.85,0.03991165]
[1739748961857,5.2939,188.87,188.85,0.03991165]
[1739748962062,11.03532875,188.89,188.85,0.03991165]
[1739748962663,5.2941,188.86,188.85,0.03991165]
[1739748963265,16.29212207,188.86,188.85,0.03991165]
[1739748964168,16.29212207,188.86,188.85,1.165e-05]
[1739748964468,5.296,188.8,188.73,3.2069]
[1739748964766,5.296,188.8,188.75,5.2972]
[1739748964967,10.99802207,188.86,188.73,3.2069]
[1739748965461,0.03558162,188.81,188.78,0.03703687]
[1739748966564,194.0,188.88,188.78,0.03703687]
[1739748966565,199.2937,188.88,188.78,0.03703687]
[1739748966868,194.0,188.88,188.78,0.03703687]
[1739748967065,5.2946,188.85,188.78,5.33333687]
[1739748967264,194.0,188.88,188.78,0.03703687]
[1739748967767,5.2949,188.84,188.78,0.03703687]
[1739748968264,5.2949,188.84,188.78,5.33333687]
[1739748968467,0.03808529,188.85,188.78,5.33333687]
[1739748968670,5.295,188.83,188.78,5.33333687]
[1739748968971,10.99802207,188.81,188.78,0.00153687]
[1739748969170,5.2961,188.79,188.78,0.00153687]
[1739748969365,10.99802207,188.81,188.78,0.00153687]
[1739748969567,204.99802207,188.84,188.78,0.00153687]
[1739748969767,194.0,188.84,188.78,0.00153687]
[1739748969963,204.99802207,188.84,188.78,0.00153687]
[1739748970169,0.03772876,188.83,188.78,0.00153687]
[1739748970672,5.2958,188.8,188.78,0.00153687]
[1739748971976,5.2961,188.79,188.78,0.00153687]
[1739748973274,0.03772876,188.83,188.78,0.00153687]
[1739748973471,5.293,188.9,188.82,5.295]
[1739748973679,5.293,188.9,188.79,14.29462207]
[1739748973976,10.99802207,188.93,188.79,14.29462207]
[1739748974176,5.293,188.91,188.83,5.2947]
[1739748974369,10.99802207,188.93,188.83,5.2947]
[1739748974678,5.32830199,188.9,188.86,0.03531318]
[1739748977280,0.03520199,188.9,188.86,0.03531318]
[1739748977581,0.03520199,188.9,188.87,5.2936]
[1739748978778,0.03520199,188.9,188.86,0.03531318]
[1739748978981,0.03520199,188.9,188.86,5.32941318]
[1739748979580,0.03520199,188.9,188.86,0.03531318]
[1739748980585,5.32840199,188.9,188.86,0.03531318]
[1739748982387,0.03520199,188.9,188.86,0.03531318]
[1739748984187,5.32820199,188.9,188.86,0.03531318]
[1739748984783,0.03520199,188.9,188.86,0.03531318]
[1739748985487,5.2933,188.89,188.86,0.03531318]
[1739748985686,0.03520199,188.9,188.86,0.03531318]
[1739748987489,5.2935,188.89,188.86,0.03531318]
[1739748988588,0.03520199,188.9,188.86,0.03531318]
[1739748988785,5.32820199,188.9,188.86,0.03531318]
[1739748990488,5.2936,188.88,188.86,0.03531318]
[1739748990884,5.2933,188.89,188.86,0.03531318]
[1739748991084,0.03520199,188.9,188.86,0.03531318]
[1739748991580,5.2936,188.88,188.86,0.03531318]
[1739748991783,0.03520199,188.9,188.86,0.03531318]
[1739748994589,5.32820199,188.9,188.86,0.03531318]